bitfinex-derivatives/quotes_ETHF0:USTF0_20250212
["timestamp","ask_amount","ask_price","bid_price","bid_amount"]
[1739380931962,2.028,2665.1,2664.7,3.2078]
[1739380932354,2.028,2665.1,2664.8,0.75048]
[1739380932765,2.028,2665.1,2664.7,3.2078]
[1739380932957,0.75045,2665.0,2664.7,3.2078]
[1739380933154,2.028,2665.1,2664.7,3.2078]
[1739380933465,0.75043,2665.0,2664.7,3.2078]
[1739380933658,2.028,2665.1,2664.8,0.75047]
[1739380933862,0.75036,2665.3,2664.7,7.07797275]
[1739380934064,0.75039,2665.2,2664.8,0.75046]
[1739380934464,2.028,2665.4,2664.7,7.07797275]
[1739380934663,0.06284145,2665.3,2664.7,3.2078]
[1739380934964,0.75046,2664.9,2664.7,3.2078]
[1739380935162,2.77846,2664.9,2664.7,3.2078]
[1739380935368,2.77846,2664.9,2664.8,40.8]
[1739380935773,8.09085313,2664.9,2664.6,0.00563497]
[1739380935974,3.95831,2664.7,2664.6,0.00563497]
[1739380936166,0.5914,2664.8,2664.6,3.21343497]
[1739380936366,0.75045,2665.0,2664.7,40.8]
[1739380936567,2.6263,2665.2,2664.7,40.8]
[1739380936568,0.75043,2665.1,2664.7,40.8]
[1739380936869,0.75043,2665.1,2664.7,41.55051]
[1739380937272,0.75045,2665.0,2664.7,40.8]
[1739380937574,0.5776,2665.3,2664.9,3.2078]
[1739380937773,2.77733,2665.4,2665.0,0.75042]
[1739380937968,2.027,2665.7,2665.3,3.2078]
[1739380938274,0.75028,2665.6,2665.3,3.2078]
[1739380938674,2.027,2665.7,2665.3,3.2078]
[1739380938972,2.027,2665.7,2665.6,3.2078]
[1739380939177,1.33342497,2665.9,2665.6,3.2078]
[1739380939674,0.00563497,2665.9,2665.7,40.8]
[1739380939879,0.00563497,2665.9,2665.8,0.7502]
[1739380940072,0.35187399,2666.3,2666.1,0.75012]
[1739380940274,0.75004,2666.4,2666.2,3.2078]
[1739380940468,0.75004,2666.4,2666.3,40.8]
[1739380941373,0.81285402,2666.4,2666.3,40.8]
[1739380941979,23.00202,2666.5,2666.3,40.8]
[1739380942178,0.74989,2667.0,2666.3,40.8]
[1739380942485,0.74989,2667.0,2666.5,7.07797275]
[1739380942975,0.74989,2667.0,2666.2,3.2078]
[1739380942976,0.75006,2666.3,2666.2,3.2078]
[1739380943179,0.75009,2666.2,2666.1,0.00563497]
[1739380943482,0.75031,2665.5,2665.3,3.2078]
[1739380943681,2.027,2665.5,2664.9,3.2078]
[1739380943978,2.027,2665.5,2665.2,3.2078]
[1739380944179,2.027,2665.5,2664.8,3.2078]
[1739380944384,0.06283816,2665.4,2664.8,3.2078]
[1739380944584,0.75038,2665.2,2664.9,0.00563497]
[1739380945278,0.75038,2665.2,2665.0,40.8]
[1739380945479,2.027,2665.5,2665.0,40.8]
[1739380945480,2.37873615,2665.5,2665.0,40.8]
[1739380945683,0.06283946,2665.4,2665.0,40.8]
[1739380945882,2.027,2665.3,2665.1,3.2078]
[1739380946380,2.027,2665.4,2665.1,3.9582]
[1739380946588,2.027,2665.4,2665.1,3.2078]
[1739380946974,2.027,2665.5,2665.1,3.95818]
[1739380947486,0.75027,2665.6,2665.4,3.2078]
[1739380947487,2.027,2665.6,2665.4,3.2078]
[1739380947783,2.77727,2665.6,2665.4,3.2078]
[1739380947989,2.027,2665.6,2665.4,3.2078]
[1739380948284,2.027,2665.7,2665.4,3.2078]
[1739380948483,2.027,2665.7,2665.4,3.9581]
[1739380948685,2.77725,2665.7,2665.4,3.2078]
[1739380949281,2.027,2665.7,2665.4,3.2078]
[1739380949485,2.027,2665.7,2665.4,3.9581]
[1739380949687,2.77724,2665.7,2665.4,3.95811]
[1739380949885,0.75026,2665.6,2665.4,3.2078]
[1739380950084,2.027,2665.7,2665.4,3.2078]
[1739380950281,2.026,2666.0,2665.4,3.2078]
[1739380950596,0.35173615,2666.2,2665.9,0.75016]
[1739380950597,2.026,2666.2,2665.9,0.75016]
[1739380950888,2.026,2666.2,2666.1,3.2078]
[1739380951090,0.00563497,2666.5,2666.3,0.75005]
[1739380951277,0.75564497,2666.5,2666.4,3.2078]
[1739380951477,0.00563497,2666.5,2666.4,3.2078]
[1739380951980,0.00563497,2666.5,2666.4,3.95783]
[1739380952777,0.75564497,2666.5,2666.4,3.2078]
[1739380952987,0.7501,2666.2,2666.1,3.2078]
[1739380953375,0.00563497,2666.5,2666.1,13.07797275]
[1739380953581,0.585,2667.7,2666.4,7.07797275]
[1739380953780,0.585,2667.7,2667.2,3.2078]
[1739380954285,0.74977,2667.4,2667.2,3.2078]
[1739380954482,0.74974,2667.5,2667.2,3.2078]
[1739380954678,0.0056243,2667.6,2667.2,3.2078]
[1739380954882,0.0056243,2667.6,2667.5,3.2078]
[1739380955488,0.5882,2668.5,2667.5,9.2078]
[1739380955680,1.33766,2668.5,2668.2,3.2078]
[1739380955995,0.74946,2668.5,2668.2,3.2078]
[1739380956389,21.679,2668.8,2668.2,3.2078]
[1739380956688,0.00373173,2668.6,2668.3,0.74948]
[1739380956885,3.7829,2669.8,2668.5,3.2078]
[1739380957083,0.7492,2669.4,2668.9,3.2078]
[1739380957389,5.2328,2669.4,2668.9,3.2078]
[1739380957692,5.2328,2669.4,2668.4,3.87017275]
[1739380957693,5.2328,2669.4,2668.6,3.2078]
[1739380958086,0.74929,2669.1,2668.7,0.0056243]
[1739380958290,2.7742,2669.4,2668.9,3.2078]
[1739380958685,2.025,2669.4,2668.9,3.2078]
[1739380958991,2.77421,2669.4,2668.9,3.2078]
[1739380959192,3.796,2669.7,2668.9,3.2078]
[1739380959496,0.74919,2669.4,2668.9,3.2078]
[1739380959690,2.025,2669.6,2668.9,3.2078]
[1739380959991,0.74926,2669.2,2668.7,0.0056243]
[1739380960187,2.024,2669.1,2668.7,0.0056243]
[1739380960682,2.77328,2669.1,2668.7,0.0056243]
[1739380960886,2.024,2669.1,2668.7,0.0056243]
[1739380961388,2.77325,2669.2,2668.7,3.87579705]
[1739380961787,0.74929,2669.1,2668.7,0.0056243]
[1739380961990,2.77326,2669.2,2668.7,0.0056243]
[1739380962195,2.024,2669.2,2668.7,0.0056243]
[1739380962391,5.2318,2669.3,2668.7,0.0056243]
[1739380962690,0.74936,2668.8,2668.7,0.0056243]
[1739380962895,2.024,2669.2,2668.7,0.0056243]
[1739380963089,2.77327,2669.2,2668.8,3.2078]
[1739380963494,2.024,2669.2,2668.8,3.2078]
[1739380963693,0.7493,2669.1,2668.8,3.2078]
[1739380963891,5.2318,2669.2,2668.8,3.2078]
[1739380964196,0.74932,2669.0,2668.7,0.0056243]
[1739380964390,5.2318,2669.2,2668.7,0.0056243]
[1739380964391,0.74936,2668.8,2668.7,0.0056243]
[1739380964901,3.95716,2668.8,2668.7,0.0056243]
[1739380965097,9.27055379,2668.8,2668.2,3.2078]
[1739380965394,6.51252654,2668.7,2667.7,3.2078]
[1739380965702,0.74962,2667.9,2667.7,3.2078]
[1739380965995,0.74962,2667.9,2667.0,3.89866]
[1739380965996,0.06278576,2667.8,2666.7,7.07797275]
[1739380966203,0.74977,2667.4,2666.7,7.82791275]
[1739380966402,2.023,2667.3,2667.0,0.0056243]
[1739380966594,0.74984,2667.1,2667.0,0.0056243]
[1739380966899,2.77282,2667.2,2667.0,0.0056243]
[1739380967293,2.023,2667.2,2667.0,0.0056243]
[1739380967495,3.95764,2667.1,2667.0,0.0056243]
[1739380967802,2.023,2667.2,2667.0,0.0056243]
[1739380968001,0.74984,2667.1,2667.0,0.0056243]
[1739380968205,3.2078,2667.1,2665.9,3.2078]
[1739380968504,0.75007,2666.3,2665.6,3.95805]
[1739380968804,2.77305,2666.4,2666.1,40.8]
[1739380968989,2.023,2666.3,2666.1,40.8]
[1739380969190,3.2078,2666.9,2666.1,40.8]
[1739380969498,3.87017275,2667.0,2666.3,0.75006]
[1739380969499,0.0056243,2666.5,2666.3,0.75006]
[1739380969696,0.0056243,2666.5,2666.2,3.2078]
[1739380970400,0.0056243,2666.5,2666.4,0.75003]
[1739380970905,0.0056243,2666.5,2666.4,4.62020275]
[1739380971199,0.0056243,2666.5,2666.4,40.8]
[1739380972304,0.7556343,2666.5,2666.4,40.8]
[1739380972804,0.0056243,2666.5,2666.4,45.42020275]
[1739380973197,0.0056243,2666.5,2666.4,40.8]
[1739380973599,0.0056243,2666.5,2666.4,41.55003]
[1739380977098,0.0056243,2666.5,2666.4,40.8]
[1739380977099,0.7556343,2666.5,2666.4,40.8]
[1739380977500,0.0056243,2666.5,2666.4,40.8]
[1739380977700,0.0056243,2666.5,2666.4,41.55003]
[1739380979610,0.74983,2667.2,2666.4,47.55003]
[1739380979803,3.2078,2667.4,2666.8,3.2078]
[1739380980008,3.2078,2667.4,2667.1,0.74981]
[1739380980009,0.74981,2667.2,2667.1,0.74981]
[1739380980209,0.74981,2667.2,2667.1,41.54981]
[1739380980403,0.74971,2667.6,2667.5,0.74972]
[1739380980602,0.74972,2667.5,2667.4,3.95754]
[1739380981310,0.74971,2667.6,2667.4,3.95754]
[1739380981505,2.5991243,2667.8,2667.4,3.2078]
[1739380981810,0.0056243,2667.8,2667.7,3.95747]
[1739380983299,0.0056243,2667.8,2667.7,40.8]
[1739380983604,0.74972,2667.6,2667.4,3.2078]
[1739380983802,2.023,2667.5,2667.4,3.95755]
[1739380984005,2.77273,2667.5,2667.4,3.2078]
[1739380984609,2.023,2667.5,2667.4,3.2078]
[1739380985005,2.77273,2667.5,2667.4,3.2078]
[1739380985209,2.023,2667.5,2667.4,3.2078]
[1739380986107,8.08578846,2667.5,2666.6,3.2078]
[1739380986311,0.74994,2666.8,2666.3,0.75005]
[1739380986515,2.023,2666.7,2666.3,0.75005]
[1739380986812,2.023,2666.7,2666.4,40.8]
[1739380987005,0.75001,2666.5,2666.4,40.8]
[1739380988304,0.75001,2666.5,2665.4,0.5956]
[1739380988305,4.53677332,2666.5,2665.3,3.2078]
[1739380988507,3.2078,2666.1,2665.3,3.95813]
[1739380988708,0.75021,2665.8,2665.4,40.8]
[1739380988915,0.75019,2665.9,2665.4,41.55031]
[1739380989213,2.023,2666.0,2665.4,40.8]
[1739380989515,0.75017,2665.9,2665.4,41.5559343]
[1739380990111,2.0286243,2666.0,2665.4,40.8056243]
[1739380990418,0.0056243,2666.0,2665.6,3.2078]
[1739380990813,3.95806,2665.7,2665.4,0.0056243]
[1739380991007,0.75029,2665.5,2665.4,0.0056243]
[1739380991409,6.75029,2665.5,2665.4,0.00186056]
[1739380991613,1.37773157,2665.5,2665.4,0.00186056]
[1739380991806,1.31489,2665.5,2665.4,0.00186056]
[1739380992007,1.37773294,2665.5,2665.4,0.00186056]
[1739380992210,1.31489,2665.5,2665.4,0.00186056]
[1739380992410,0.5646,2665.5,2665.4,0.00186056]
[1739380992809,2.023,2665.5,2665.4,0.00186056]
[1739380993015,2.77329,2665.5,2665.4,0.00186056]
[1739380993212,12.62261613,2665.5,2663.6,3.7773]
[1739380993420,3.2078,2664.7,2663.8,0.75074]
[1739380993716,0.75067,2664.2,2663.7,0.75078]
[1739380993919,0.75063,2664.3,2663.9,3.2078]
[1739380994118,3.2078,2664.4,2663.9,3.2078]
[1739380994320,0.75064,2664.3,2663.9,3.2078]
[1739380994519,3.2134243,2664.4,2663.9,0.0056243]
[1739380995219,0.75071,2664.0,2663.9,0.0056243]
[1739380995518,2.023,2664.1,2663.9,0.0056243]
[1739380995717,2.023,2664.1,2664.0,40.8]
[1739380996218,2.024,2664.2,2664.0,40.8]
[1739380996614,0.0056243,2664.4,2664.0,44.7585]
[1739380996811,0.0056243,2664.4,2664.0,44.0078]
[1739380997012,0.0056243,2664.4,2664.0,44.7585]
[1739380997818,0.0056243,2664.4,2664.0,40.8]
[1739380998008,0.75068,2664.1,2664.0,40.8]
[1739380998419,3.95848,2664.1,2664.0,40.8]
[1739380998613,4.02135708,2664.1,2664.0,40.8]
[1739380998918,3.27067708,2664.1,2663.9,0.0056243]
[1739380999120,0.81358708,2664.0,2663.9,0.0056243]
[1739380999316,0.81358983,2664.0,2663.9,0.0056243]
[1739380999620,0.75071,2664.0,2663.9,0.0056243]
[1739380999811,6.06288018,2664.0,2663.4,40.8]
[1739381000012,0.75085,2663.5,2663.4,40.8]
[1739381000416,0.75097,2663.1,2662.6,0.75109]
[1739381000720,2.024,2663.1,2662.4,0.5896]
[1739381000922,2.024,2663.1,2662.9,40.8]
[1739381001722,2.024,2663.1,2663.0,0.75099]
[1739381001918,0.0056243,2663.3,2663.2,0.75094]
[1739381002623,3.2078,2664.2,2663.2,3.2078]
[1739381002923,0.75073,2664.0,2663.2,3.2078]
[1739381003120,2.024,2664.1,2663.2,3.7867]
[1739381003323,2.024,2664.1,2663.9,0.75073]
[1739381003618,1.94224,2664.3,2663.5,3.2078]
[1739381003923,0.75073,2664.0,2663.6,0.7508]
[1739381004112,3.2078,2664.2,2663.5,3.2078]
[1739381004315,3.2078,2664.2,2663.2,0.5789]
[1739381004512,3.0738543,2664.3,2663.2,3.2078]
[1739381004513,3.2078,2663.8,2663.2,3.2078]
[1739381004716,2.024,2663.7,2663.1,0.5945]
[1739381005224,0.75089,2663.4,2663.3,40.8]
[1739381005721,3.95869,2663.4,2663.3,40.8]
[1739381006122,3.95869,2663.4,2662.5,3.2134243]
[1739381006123,0.75105,2662.8,2662.5,3.2134243]
[1739381006319,2.024,2663.1,2662.5,3.2134243]
[1739381006624,0.7566543,2662.9,2662.7,40.8]
[1739381007022,0.7566643,2662.9,2662.7,40.8]
[1739381007323,0.0056243,2662.9,2662.7,40.8]
[1739381007621,0.0056243,2662.9,2662.8,3.95885]
[1739381008817,0.0056243,2662.9,2662.8,3.2078]
[1739381009022,0.0056243,2662.9,2662.7,40.8]
[1739381009224,0.7566643,2662.9,2662.7,40.8]
[1739381010028,0.0056243,2662.9,2662.7,40.8]
[1739381010227,0.0056243,2662.9,2662.7,41.55107]
[1739381010429,0.0056243,2662.9,2662.7,40.8]
[1739381010824,0.0056243,2662.9,2662.8,3.95885]
[1739381011221,0.0056243,2662.9,2662.8,9.95885]
[1739381011427,0.75081,2663.7,2663.4,0.75087]
[1739381011621,2.77478,2663.8,2663.5,0.75084]
[1739381011925,5.2318,2664.4,2663.6,3.2078]
[1739381012122,0.75084,2663.6,2663.3,3.95868]
[1739381012433,0.75084,2663.6,2663.3,0.75088]
[1739381012722,0.75085,2663.5,2663.2,3.95872]
[1739381012928,0.7509,2663.4,2663.2,3.2078]
[1739381013522,2.024,2663.6,2663.2,3.2078]
[1739381014025,0.75086,2663.5,2663.2,3.95872]
[1739381014223,0.7509,2663.4,2663.0,0.75097]
[1739381014423,0.7509,2663.4,2663.1,0.75096]
[1739381014631,0.7509,2663.4,2662.9,3.2078]
[1739381014828,0.7509,2663.4,2663.0,0.75099]
[1739381015129,2.024,2663.6,2663.0,0.75099]
[1739381015325,2.024,2663.6,2662.9,3.2078]
[1739381015733,0.0056243,2663.7,2663.5,0.75084]
[1739381016027,0.7564243,2663.7,2663.4,0.75087]
[1739381016332,0.75083,2663.6,2663.3,3.95868]
[1739381016527,0.0056243,2663.7,2663.3,3.2078]
[1739381016830,0.0056243,2663.7,2663.6,0.75082]
[1739381017425,0.0056243,2663.7,2663.6,41.55082]
[1739381017626,19.659,2664.6,2664.2,0.75064]
[1739381017826,19.659,2664.6,2663.9,3.2078]
[1739381018033,20.40956,2664.6,2664.3,0.75061]
[1739381018625,20.40956,2664.6,2664.3,3.95841]
[1739381018829,20.40956,2664.6,2664.2,0.0056243]
[1739381019027,0.75058,2664.5,2664.2,0.7562643]
[1739381019224,19.659,2664.6,2664.2,0.7562643]
[1739381019423,20.40955,2664.6,2664.3,0.75062]
[1739381019623,19.659,2664.6,2664.2,0.0056243]
[1739381019832,0.75057,2664.5,2664.2,0.0056243]
[1739381020025,19.659,2664.6,2664.4,0.75058]
[1739381020226,19.659,2664.6,2664.2,3.2134243]
[1739381020532,19.659,2664.6,2664.5,0.75057]
[1739381020825,0.0056243,2664.7,2664.2,3.2134243]
[1739381021030,0.0056243,2664.7,2664.6,0.75054]
[1739381021230,0.75032,2665.4,2665.0,0.75041]
[1739381021431,0.75032,2665.4,2664.6,3.7711]
[1739381021638,0.75039,2665.2,2664.7,41.55051]
[1739381022325,0.7560143,2665.2,2664.7,41.5505]
[1739381022525,0.7504,2665.1,2664.7,40.8]
[1739381022725,0.0056243,2665.2,2664.7,40.8]
[1739381023134,0.0056243,2665.2,2664.8,0.75046]
[1739381023531,0.7559943,2665.2,2664.7,41.5505]
[1739381023736,0.7560243,2665.2,2664.7,41.5505]
[1739381024035,2.7734,2665.1,2664.7,41.5505]
[1739381024230,0.75048,2664.8,2664.7,40.8]
[1739381024434,0.75052,2664.7,2664.3,3.9584]
[1739381024731,2.023,2664.6,2664.4,0.75058]
[1739381024931,2.023,2664.6,2664.5,0.75057]
[1739381025124,3.2078,2665.0,2664.3,44.0078]
[1739381025435,3.36173,2665.1,2664.6,0.75052]
[1739381025627,2.6113,2665.1,2664.6,0.75052]
[1739381025828,0.75044,2665.0,2664.3,44.0078]
[1739381026030,3.2078,2665.0,2664.4,0.75058]
[1739381026230,3.2078,2665.0,2664.3,44.0078]
[1739381026538,0.75049,2664.8,2664.4,0.75059]
[1739381027036,0.75063,2664.3,2664.2,0.0056243]
[1739381027233,2.77363,2664.3,2664.2,0.0056243]
[1739381027734,2.023,2664.3,2664.2,0.0056243]
[1739381028634,2.023,2664.3,2664.2,0.7562743]
[1739381029429,0.6025,2664.7,2664.2,0.0056243]
[1739381029632,2.023,2664.6,2664.3,0.7506]
[1739381029828,2.023,2664.6,2664.5,0.75057]
[1739381030029,2.023,2664.7,2664.2,0.0056243]
[1739381030228,2.77351,2664.7,2664.2,0.6020243]
[1739381030429,2.023,2664.7,2664.2,0.6020243]
[1739381030834,2.023,2664.7,2664.2,0.0056243]
[1739381031041,0.75061,2664.4,2664.2,0.0056243]
[1739381032142,2.023,2664.7,2664.2,0.0056243]
[1739381032440,0.75063,2664.3,2664.2,0.0056243]
[1739381034535,3.7999,2664.5,2664.2,0.0056243]
[1739381034737,3.95839,2664.5,2664.2,0.7562743]
[1739381035137,3.95839,2664.5,2664.2,0.0056243]
[1739381035335,3.2078,2665.0,2664.2,0.0056243]
[1739381035536,0.75049,2664.8,2664.5,0.75056]
[1739381035742,5.0839,2665.0,2664.4,0.5529]
[1739381036041,0.75053,2664.7,2664.6,40.8]
[1739381036239,2.0276243,2665.2,2664.6,40.8]
[1739381036537,0.0056243,2665.2,2664.9,3.95824]
[1739381036743,0.0056243,2665.2,2664.9,3.2078]
[1739381036934,0.0056243,2665.2,2665.0,0.75042]
[1739381037441,0.7560143,2665.2,2664.9,3.2078]
[1739381037734,0.0056243,2665.2,2664.9,3.95825]
[1739381037940,0.0056243,2665.2,2665.0,0.75041]
[1739381038533,0.0056243,2665.2,2664.9,3.2078]
[1739381038838,0.75043,2665.1,2664.9,3.2078]
[1739381039038,0.75042,2665.1,2664.9,3.2078]
[1739381039238,0.7504,2665.1,2664.9,3.2078]
[1739381039441,0.0056243,2665.2,2664.9,3.95824]
[1739381039743,0.7559943,2665.2,2664.9,3.95824]
[1739381039938,0.7559943,2665.2,2664.9,3.2078]
[1739381040236,0.75043,2665.0,2664.9,3.2078]
[1739381040431,0.75042,2665.1,2664.9,3.2078]
[1739381040631,0.0056243,2665.2,2664.9,3.95824]
[1739381040836,0.0056243,2665.2,2664.6,3.2078]
[1739381041036,0.0056243,2665.2,2664.2,3.2134243]
[1739381041037,3.2078,2665.0,2664.2,3.2134243]
[1739381041346,0.0056243,2665.2,2664.3,40.8]
[1739381041347,0.75058,2664.5,2664.3,40.8]
[1739381041648,5.2298,2664.7,2664.3,40.8]
[1739381041946,0.7506,2664.4,2664.3,40.8]
[1739381042443,0.75059,2664.5,2664.3,40.8]
[1739381042745,0.7506,2664.4,2664.3,40.8]
[1739381043849,0.35209021,2664.6,2664.3,40.8]
[1739381044142,0.35209021,2664.6,2664.4,3.2078]
[1739381044347,0.35209021,2664.6,2664.3,40.8]
[1739381044543,0.7506,2664.4,2664.3,40.8]
[1739381044742,2.022,2665.0,2664.3,40.8]
[1739381044944,0.75054,2664.6,2664.3,41.55061]
[1739381045248,2.022,2665.0,2664.3,41.55061]
[1739381045249,0.7506,2664.4,2664.3,40.8]
[1739381045544,2.021,2664.4,2664.2,0.0056243]
[1739381045738,0.75063,2664.3,2664.2,0.0056243]
[1739381045939,0.81349894,2664.3,2664.2,0.0056243]
[1739381046345,0.81349873,2664.3,2664.2,0.0056243]
[1739381046747,0.75071,2664.0,2663.9,40.8]
[1739381046946,0.06286873,2664.0,2663.4,3.2078]
[1739381047143,2.021,2663.9,2663.4,3.2078]
[1739381047547,2.021,2663.9,2663.5,40.8]
[1739381047743,2.021,2663.9,2663.7,0.75078]
[1739381047944,3.2078,2664.1,2663.5,40.8]
[1739381048150,0.75066,2664.2,2663.8,0.75075]
[1739381048351,2.021,2664.6,2663.7,3.2078]
[1739381048548,0.06286549,2664.5,2664.1,3.2078]
[1739381048738,3.12362528,2664.6,2664.2,0.75064]
[1739381048944,20.41153,2664.7,2664.3,0.75062]
[1739381049145,21.682,2664.7,2664.4,0.75058]
[1739381049350,0.75054,2664.6,2664.2,0.75064]
[1739381049650,21.682,2664.7,2664.1,3.2078]
[1739381050856,0.75064,2664.3,2664.1,3.2078]
[1739381051147,3.2078,2664.5,2664.1,3.2078]
[1739381051354,0.75063,2664.3,2664.1,3.2078]
[1739381051743,0.35206263,2664.6,2664.1,3.2078]
[1739381051951,0.75059,2664.5,2664.1,3.95848]
[1739381052154,0.75062,2664.4,2664.1,3.2078]
[1739381052652,19.661,2664.7,2664.1,3.2078]
[1739381052846,21.682,2664.7,2664.1,3.2078]
[1739381053048,21.682,2664.7,2664.3,0.75062]
[1739381053049,22.43252,2664.7,2664.3,0.75062]
[1739381053344,0.75059,2664.5,2664.4,40.8]
[1739381054048,3.95837,2664.5,2664.4,40.8]
[1739381054453,0.75057,2664.5,2664.4,40.8]
[1739381055654,3.95837,2664.5,2664.4,40.8]
[1739381055848,3.2078,2664.5,2664.1,3.2078]
[1739381056049,0.75065,2664.2,2664.1,3.2078]
[1739381056451,3.2078,2664.5,2664.1,44.0078]
[1739381056653,0.75064,2664.3,2664.1,44.0078]
[1739381056955,2.021,2664.2,2664.1,44.0078]
[1739381057557,2.021,2664.2,2664.1,40.8]
[1739381057761,2.77165,2664.2,2664.1,40.8]
[1739381058253,5.97945,2664.2,2664.1,40.8]
[1739381058459,11.2916699,2664.2,2663.4,0.0056243]
[1739381058650,0.75085,2663.5,2663.4,0.0056243]
[1739381058851,5.97965,2663.5,2663.4,0.0056243]
[1739381059557,6.33172912,2663.5,2663.4,0.0056243]
[1739381060148,6.39462211,2663.5,2663.4,0.0056243]
[1739381061245,6.39462375,2663.5,2663.4,0.0056243]
[1739381061450,6.33172912,2663.5,2663.4,0.0056243]
[1739381061651,6.39462191,2663.5,2663.4,0.0056243]
[1739381062353,6.33172912,2663.5,2663.4,0.0056243]
[1739381062551,3.55987912,2663.5,2663.4,0.0056243]
[1739381062749,5.58087912,2663.5,2663.4,0.0056243]
[1739381063058,5.2288,2663.5,2663.4,0.0056243]
[1739381063560,2.021,2663.6,2663.4,40.8056243]
[1739381064148,0.75085,2663.5,2663.4,40.8056243]
[1739381064554,0.75085,2663.5,2663.4,0.0056243]
[1739381064754,3.95865,2663.5,2663.4,0.0056243]
[1739381065061,4.57004341,2663.5,2663.4,0.0056243]
[1739381065259,5.14004341,2663.5,2663.4,0.0056243]
[1739381065859,5.07715,2663.5,2663.4,0.0056243]
[1739381066161,7.09815,2663.5,2663.4,0.0056243]
[1739381067060,5.97965,2663.5,2663.4,0.0056243]
[1739381067254,3.2078,2663.5,2663.4,0.0056243]
[1739381067460,5.2278,2663.5,2663.4,0.0056243]
[1739381067657,5.97865,2663.5,2663.4,0.0056243]
[1739381068363,5.2278,2663.5,2663.4,0.0056243]
[1739381068865,0.0056243,2663.7,2663.4,0.0056243]
[1739381069059,0.7564443,2663.7,2663.4,0.7564943]
[1739381069258,0.75083,2663.6,2663.4,0.5583243]
[1739381069461,0.0056243,2663.7,2663.4,0.5583243]
[1739381070067,0.0056243,2663.7,2663.5,3.2078]
[1739381070472,0.75085,2663.5,2663.4,0.5583243]
[1739381070764,0.75084,2663.6,2663.4,0.5583243]
[1739381070965,0.0056243,2663.7,2663.4,0.5583243]
[1739381071262,0.0056243,2663.7,2663.4,0.0056243]
[1739381071263,0.75085,2663.5,2663.4,0.0056243]
[1739381073175,0.81373925,2663.5,2663.4,0.0056243]
[1739381073761,2.02,2663.5,2663.4,0.0056243]
[1739381073962,2.77085,2663.5,2663.4,0.0056243]
[1739381074659,2.83373918,2663.5,2663.4,0.0056243]
[1739381075169,2.77085,2663.5,2663.4,0.0056243]
[1739381075561,2.02,2663.5,2663.4,0.0056243]
[1739381075766,2.77085,2663.5,2663.4,0.0056243]
[1739381075966,2.02,2663.5,2663.4,0.0056243]
[1739381076975,0.7564243,2663.7,2663.4,0.7565043]
[1739381077168,0.7564243,2663.7,2663.4,0.0056243]
[1739381077169,2.02,2663.6,2663.4,0.0056243]
[1739381077370,2.02,2663.6,2663.4,0.7564943]
[1739381077872,0.0056243,2663.7,2663.6,0.75082]
[1739381078772,0.0056243,2663.7,2663.6,0.5477]
[1739381079171,0.0056243,2663.7,2663.6,1.29852]
[1739381080473,0.0056243,2663.7,2663.6,0.5477]
[1739381080685,0.7564143,2663.7,2663.6,0.5477]
[1739381080873,0.0056243,2663.7,2663.6,0.5477]
[1739381081263,0.7564143,2663.7,2663.6,0.5477]
[1739381081469,0.75082,2663.6,2663.5,0.604]
[1739381081665,0.0056243,2663.7,2663.5,0.604]
[1739381082072,0.7564443,2663.7,2663.5,0.604]
[1739381082267,0.75082,2663.6,2663.5,0.604]
[1739381082474,0.75085,2663.5,2663.4,0.0056243]
[1739381083886,2.76985,2663.5,2663.4,0.0056243]
[1739381084575,6.04053844,2663.5,2663.4,0.0056243]
[1739381085083,6.39274772,2663.5,2663.4,0.0056243]
[1739381086375,6.39275735,2663.5,2663.4,0.0056243]
[1739381088188,6.39275942,2663.5,2663.4,0.0056243]
[1739381089279,5.97765,2663.5,2663.4,0.0056243]
[1739381089590,6.04054146,2663.5,2663.4,40.8056243]
[1739381089887,0.75104,2662.9,2662.7,0.5871]
[1739381090182,0.75104,2662.9,2662.8,40.8]
[1739381090977,13.08008729,2662.9,2662.6,0.0056243]
[1739381091182,13.08008729,2662.9,2661.7,0.75134]
[1739381091183,0.75124,2662.2,2661.7,0.75134]
[1739381091380,2.019,2662.3,2661.8,0.75132]
[1739381091583,2.77019,2662.3,2661.9,3.95909]
[1739381091982,2.77019,2662.3,2662.0,40.8]
[1739381092283,2.019,2662.3,2662.0,40.8]
[1739381092488,2.019,2662.3,2662.0,41.3958]
[1739381092985,2.019,2662.3,2662.0,42.14706]
[1739381093384,2.02463497,2662.4,2662.0,41.3958]
[1739381093684,2.02463497,2662.4,2662.1,0.75124]
[1739381093986,2.02463497,2662.4,2662.2,0.5996]
[1739381094289,2.02463497,2662.4,2662.2,3.8074]
[1739381094483,2.02463497,2662.4,2662.3,0.75119]
[1739381094784,2.02463497,2662.4,2662.2,3.8074]
[1739381095189,2.02463497,2662.4,2662.3,40.8]
[1739381095394,0.00563497,2662.4,2662.3,41.55119]
[1739381095578,0.75106,2662.8,2662.5,0.75112]
[1739381095889,0.75106,2662.8,2662.3,40.8]
[1739381096190,0.75106,2662.8,2662.5,0.75112]
[1739381096391,5.2268,2663.0,2662.5,3.2078]
[1739381096590,2.019,2663.0,2662.5,3.2078]
[1739381096797,2.02463497,2663.0,2662.5,3.2078]
[1739381096984,2.02463497,2663.0,2662.6,0.7511]
[1739381097286,0.75108,2662.7,2662.5,3.2078]
[1739381097484,0.7511,2662.6,2662.5,3.2078]
[1739381098491,0.7511,2662.7,2662.5,3.2078]
[1739381098788,0.00563497,2663.0,2662.5,3.2078]
[1739381098991,0.7511,2662.6,2662.5,3.2078]
[1739381099190,3.2078,2662.8,2662.4,3.2078]